fUSD/lending_fUSD_20250804
["ID","MTS","AMOUNT","RATE_DAILY","PERIOD"]
[377216418,1754296256060,-1215.1,0.00046575,120]
[377216419,1754296256071,-402.28251395,0.00046575,120]
[377216420,1754296256080,-1174.98,0.00046575,120]
[377216421,1754296256090,-400.0,0.00046575,120]
[377216422,1754296256101,-635.37,0.00046575,120]
[377216423,1754296256111,-400.0,0.00046575,120]
[377216424,1754296256120,-648.08,0.00046575,120]
[377216425,1754296256130,-839.35,0.00046575,120]
[377216426,1754296256139,-400.0,0.00046575,120]
[377216427,1754296256150,-400.0,0.00046575,120]
[377216428,1754296256159,-400.0,0.00046575,120]
[377216429,1754296256170,-1436.25,0.00046575,120]
[377216430,1754296256179,-831.66,0.00046575,120]
[377216431,1754296256188,-400.0,0.00046575,120]
[377216432,1754296256198,-813.31,0.00046575,120]
[377216433,1754296256208,-427.29,0.00046575,120]
[377216434,1754296256217,-400.0,0.00046575,120]
[377216435,1754296256227,-151.0,0.00046575,14]
[377216436,1754296256238,-917.69,0.00046575,60]
[377216437,1754296256247,-151.0,0.00046575,14]
[377216438,1754296256257,-151.0,0.00046575,14]
[377216439,1754296256267,-400.0,0.00046575,120]
[377216440,1754296256277,-853.52,0.00046575,120]
[377216441,1754296256286,-400.0,0.00046575,120]
[377216442,1754296256295,-788.22,0.00046575,120]
[377216443,1754296256304,-400.0,0.00046575,120]
[377216444,1754296256314,-400.0,0.00046575,120]
[377216445,1754296256324,-466.77,0.00046575,120]
[377216446,1754296256333,-400.0,0.00046575,120]
[377216447,1754296256342,-993.02,0.00046575,120]
[377216448,1754296256351,-588.4,0.00046575,120]
[377216449,1754296256361,-732.43,0.00046575,120]
[377216450,1754296256370,-256.12850854,0.00046575,120]
[377216451,1754296256383,-143.87149146,0.00046575,120]
[377216452,1754296256393,-610.05258389,0.00046575,120]
[377216453,1754296256460,-186.69741611,0.00046575,120]
[377216454,1754296256470,-1037.71,0.00046575,120]
[377216455,1754296256481,-400.0,0.00046575,120]
[377216456,1754296256491,-400.0,0.00046575,120]
[377216457,1754296256500,-27.64313389,0.00046575,120]
[377216458,1754296256512,-372.35686611,0.00046575,120]
[377216459,1754296256526,-415.76,0.00046575,120]
[377216460,1754296256536,-400.0,0.00046575,120]
[377216461,1754296256546,-400.0,0.00046575,120]
[377216462,1754296256556,-400.0,0.00046575,120]
[377216463,1754296256565,-400.0,0.00046575,120]
[377216464,1754296256575,-444.72,0.00046575,120]
[377216465,1754296256585,-400.0,0.00046575,120]
[377216466,1754296256596,-1467.7,0.00046575,120]
[377216467,1754296256605,-513.69,0.00046575,120]
[377216468,1754296256615,-400.0,0.00046575,120]
[377216469,1754296256624,-445.01778216,0.00046575,120]
[377216470,1754296256633,-151.0,0.00046575,14]
[377216471,1754296256643,-400.0,0.00046575,120]
[377216472,1754296256652,-151.0,0.00046575,14]
[377216473,1754296256661,-151.0,0.00046575,14]
[377216474,1754296256671,-400.0,0.00046575,120]
[377216475,1754296256682,-400.0,0.00046575,120]
[377216476,1754296256692,-400.0,0.00046575,120]
[377216477,1754296256702,-400.0,0.00046575,120]
[377216478,1754296256712,-400.0,0.00046575,120]
[377216479,1754296256722,-685.24,0.00046575,120]
[377216480,1754296256733,-261.38632475,0.00046575,120]
[377216481,1754296256746,-138.61367525,0.00046575,120]
[377216482,1754296256756,-569.96,0.00046575,120]
[377216483,1754296256766,-400.0,0.00046575,120]
[377216484,1754296256776,-151.0,0.00046575,14]
[377216485,1754296256785,-151.521991,0.00046575,14]
[377216486,1754296256795,-400.0,0.00046575,120]
[377216487,1754296256805,-680.95,0.00046575,120]
[377216488,1754296256814,-400.0,0.00046575,120]
[377216489,1754296256824,-400.0,0.00046575,120]
[377216490,1754296256834,-400.0,0.00046575,120]
[377216491,1754296256843,-400.0,0.00046575,120]
[377216492,1754296256853,-862.02,0.00046575,120]
[377216493,1754296256863,-2273.32,0.00046575,120]
[377216494,1754296256873,-400.0,0.00046575,120]
[377216495,1754296256883,-604.74,0.00046575,120]
[377216496,1754296256892,-1406.83,0.00046575,120]
[377216497,1754296256902,-711.04,0.00046575,120]
[377216498,1754296256913,-400.0,0.00046575,120]
[377216499,1754296256922,-400.0,0.00046575,120]
[377216500,1754296256933,-1033.85,0.00046575,120]
[377216501,1754296256942,-400.0,0.00046575,120]
[377216502,1754296256952,-495.6,0.00046575,120]
[377216503,1754296256962,-400.0,0.00046575,120]
[377216504,1754296256972,-151.0,0.00046575,14]
[377216505,1754296256982,-325.64838115,0.00046575,120]
[377216506,1754296256995,-785.51161885,0.00046575,120]
[377216507,1754296257005,-151.0,0.00046575,14]
[377216508,1754296257015,-151.0,0.00046575,14]
[377216509,1754296257398,-400.0,0.00046575,120]
[377216510,1754296257420,-859.88194414,0.00046575,120]
[377216511,1754296257431,-189.49805586,0.00046575,120]
[377216512,1754296257441,-555.52,0.00046575,120]
[377216513,1754296257451,-89.88554431,0.00046575,120]
[377216514,1754296257627,-310.11445569,0.00046575,120]
[377216515,1754296257642,-578.34,0.00046575,120]
[377216516,1754296257653,-452.42727642,0.00046575,120]
[377216517,1754296257664,-108.52272358,0.00046575,120]
[377216518,1754296257673,-337.9890115,0.00046575,120]
[377216519,1754296258620,-1087.0671492,0.00046444,120]
[377216520,1754296258635,-3783.072,0.00046444,120]
[377216521,1754296258660,-129.8608508,0.00046444,120]
[377216522,1754296258670,-62.0109885,0.00046575,120]
[377216523,1754296258679,-400.0,0.00046575,120]
[377216524,1754296258689,-151.0,0.00046575,14]
[377216525,1754296258698,-400.0,0.00046575,120]
[377216526,1754296258708,-590.84,0.00046575,120]
[377216527,1754296258718,-152.078767,0.00046575,14]
[377216528,1754296258728,-400.0,0.00046575,120]
[377216529,1754296258738,-400.0,0.00046575,120]
[377216530,1754296258748,-151.0,0.00046575,14]
[377216531,1754296258757,-151.0,0.00046575,14]
[377216532,1754296258767,-151.0,0.00046575,14]
[377216533,1754296258777,-647.85,0.00046575,120]
[377216534,1754296258787,-479.61,0.00046575,120]
[377216535,1754296258797,-1106.17,0.00046575,120]
[377216536,1754296258807,-744.6,0.00046575,120]
[377216537,1754296258816,-400.0,0.00046575,120]
[377216538,1754296258827,-1077.23,0.00046575,120]
[377216539,1754296258837,-400.0,0.00046575,120]
[377216540,1754296258846,-400.0,0.00046575,120]
[377216541,1754296258856,-408.42601867,0.00046575,120]
[377216542,1754296258865,-400.0,0.00046575,120]
[377216543,1754296258875,-400.0,0.00046575,120]
[377216544,1754296258884,-544.06,0.00046575,120]
[377216545,1754296258894,-987.39,0.00046575,120]
[377216546,1754296258903,-400.0,0.00046575,120]
[377216547,1754296258913,-400.0,0.00046575,120]
[377216548,1754296258923,-1667.46,0.00046575,120]
[377216549,1754296258932,-568.39,0.00046575,120]
[377216550,1754296258942,-400.0,0.00046575,120]
[377216551,1754296258951,-698.25,0.00046575,120]
[377216552,1754296258961,-538.55,0.00046575,120]
[377216553,1754296258970,-500.0,0.00046575,120]
[377216554,1754296258979,-500.0,0.00046575,120]
[377216555,1754296258990,-400.0,0.00046575,120]
[377216556,1754296258999,-611.62,0.00046575,120]
[377216557,1754296259009,-401.07157337,0.00046575,120]
[377216558,1754296259019,-400.0,0.00046575,120]
[377216559,1754296259028,-400.0,0.00046575,120]
[377216560,1754296259037,-402.17445129,0.00046575,120]
[377216561,1754296259047,-1183.66,0.00046575,120]
[377216562,1754296259056,-400.0,0.00046575,120]
[377216563,1754296259066,-428.56,0.00046575,120]
[377216564,1754296259075,-274.78759756,0.00046575,120]
[377216565,1754296259084,-400.0,0.00046575,120]
[377216566,1754296259093,-400.0,0.00046575,120]
[377216567,1754296259103,-1103.85,0.00046575,120]
[377216568,1754296259112,-400.0,0.00046575,120]
[377216569,1754296259121,-400.0,0.00046575,120]
[377216570,1754296259131,-400.0,0.00046575,120]
[377216571,1754296259141,-400.0,0.00046575,120]
[377216572,1754296259151,-400.0,0.00046575,120]
[377216573,1754296259160,-400.0,0.00046575,120]
[377216574,1754296259170,-400.0,0.00046575,90]
[377216575,1754296259179,-400.0,0.00046575,120]
[377216576,1754296259189,-842.07,0.00046575,120]
[377216577,1754296259199,-1204.35,0.00046575,120]
[377216578,1754296259209,-638.02,0.00046575,120]
[377216579,1754296259219,-400.0,0.00046575,120]
[377216580,1754296259229,-400.0,0.00046575,120]
[377216581,1754296259240,-508.57,0.00046575,120]
[377216582,1754296259249,-400.0,0.00046575,120]
[377216583,1754296259259,-591.13,0.00046575,120]
[377216584,1754296259270,-400.0,0.00046575,120]
[377216585,1754296259279,-1052.34,0.00046575,120]
[377216586,1754296259289,-507.47,0.00046575,120]
[377216587,1754296259299,-404.40238851,0.00046575,120]
[377216588,1754296259309,-1212.7,0.00046575,120]
[377216589,1754296259319,-400.0,0.00046575,120]
[377216590,1754296259329,-400.0,0.00046575,120]
[377216591,1754296259339,-400.0,0.00046575,120]
[377216592,1754296259348,-405.11841191,0.00046575,120]
[377216593,1754296259358,-400.0,0.00046575,120]
[377216594,1754296259367,-1093.19,0.00046575,120]
[377216595,1754296259377,-400.0,0.00046575,120]
[377216596,1754296259387,-497.23,0.00046575,120]
[377216597,1754296259396,-400.0,0.00046575,120]
[377216598,1754296259406,-400.0,0.00046575,120]
[377216599,1754296259415,-400.0,0.00046575,120]
[377216600,1754296259425,-542.28,0.00046575,120]
[377216601,1754296259434,-400.0,0.00046575,120]
[377216602,1754296259444,-400.0,0.00046575,120]
[377216603,1754296259453,-400.0,0.00046575,120]
[377216604,1754296259462,-400.0,0.00046575,120]
[377216605,1754296259472,-400.0,0.00046575,120]
[377216606,1754296259482,-927.97,0.00046575,120]
[377216607,1754296259492,-400.0,0.00046575,120]
[377216608,1754296259502,-400.0,0.00046575,120]
[377216609,1754296259512,-730.31,0.00046575,120]
[377216610,1754296259525,-400.0,0.00046575,120]
[377216611,1754296259535,-444.41,0.00046575,120]
[377216612,1754296259544,-3948.87,0.00046575,120]
[377216613,1754296259555,-400.0,0.00046575,120]
[377216614,1754296259565,-1976.17,0.00046575,120]
[377216615,1754296259574,-1043.28,0.00046575,120]
[377216616,1754296259584,-1186.08,0.00046575,120]
[377216617,1754296259595,-2641.96,0.00046575,120]
[377216618,1754296259605,-1265.94,0.00046575,120]
[377216619,1754296259699,-1483.56,0.00046575,120]
[377216620,1754296259709,-413.11,0.00046575,120]
[377216621,1754296259719,-400.0,0.00046575,120]
[377216622,1754296259728,-1149.94,0.00046575,120]
[377216623,1754296259738,-400.0,0.00046575,120]
[377216624,1754296259748,-400.0,0.00046575,120]
[377216625,1754296259757,-673.81,0.00046575,120]
[377216626,1754296259767,-400.0,0.00046575,120]
[377216627,1754296259776,-400.0,0.00046575,120]
[377216628,1754296259786,-1070.27,0.00046575,120]
[377216629,1754296259796,-1132.13,0.00046575,120]
[377216630,1754296259805,-768.99,0.00046575,120]
[377216631,1754296259814,-517.59,0.00046575,60]
[377216632,1754296259825,-400.0,0.00046575,120]
[377216633,1754296259834,-400.0,0.00046575,120]
[377216634,1754296259844,-1225.11,0.00046575,2]
[377216635,1754296259853,-603.45,0.00046575,120]
[377216636,1754296259862,-516.34,0.00046575,120]
[377216637,1754296259872,-400.0,0.00046575,120]
[377216638,1754296259881,-937.26,0.00046575,120]
[377216639,1754296259892,-400.0,0.00046575,120]
[377216640,1754296259902,-660.31,0.00046575,120]
[377216641,1754296259911,-400.0,0.00046575,120]
[377216642,1754296259920,-400.0,0.00046575,120]
[377216643,1754296259930,-3788.29,0.00046575,120]
[377216644,1754296259939,-400.0,0.00046575,120]
[377216645,1754296259948,-400.0,0.00046575,120]
[377216646,1754296259958,-400.0,0.00046575,120]
[377216647,1754296259967,-430.16,0.00046575,120]
[377216648,1754296259976,-400.0,0.00046575,120]
[377216649,1754296259986,-456.57,0.00046575,120]
[377216650,1754296259996,-400.0,0.00046575,120]
[377216651,1754296260005,-565.63,0.00046575,120]
[377216652,1754296260015,-166.9656076,0.00046575,120]
[377216653,1754296260024,-400.0,0.00046575,120]
[377216654,1754296260033,-400.0,0.00046575,120]
[377216655,1754296260043,-575.97,0.00046575,120]
[377216656,1754296260053,-400.0,0.00046575,120]
[377216657,1754296260063,-400.0,0.00046575,120]
[377216658,1754296260072,-781.96,0.00046575,120]
[377216659,1754296260082,-402.76722795,0.00046575,2]
[377216660,1754296260091,-602.84,0.00046575,120]
[377216661,1754296260100,-1043.31,0.00046575,120]
[377216662,1754296260109,-400.0,0.00046575,120]
[377216663,1754296260118,-432.6,0.00046575,120]
[377216664,1754296260127,-567.57,0.00046575,120]
[377216665,1754296260137,-400.0,0.00046575,120]
[377216666,1754296260148,-400.0,0.00046575,120]
[377216667,1754296260158,-400.0,0.00046575,120]
[377216668,1754296260167,-400.0,0.00046575,120]
[377216669,1754296260176,-400.0,0.00046575,120]
[377216670,1754296260185,-400.0,0.00046575,120]
[377216671,1754296260194,-400.0,0.00046575,120]
[377216672,1754296260203,-400.0,0.00046575,120]
[377216673,1754296260212,-400.0,0.00046575,120]
[377216674,1754296260221,-891.12,0.00046575,120]
[377216675,1754296260231,-422.67,0.00046575,120]
[377216676,1754296260240,-400.0,0.00046575,120]
[377216677,1754296260249,-1278.94,0.00046575,120]
[377216678,1754296260259,-400.0,0.00046575,120]
[377216679,1754296260269,-948.92,0.00046575,120]
[377216680,1754296260278,-3177.34,0.00046575,120]
[377216681,1754296260288,-4608.27,0.00046575,120]
[377216682,1754296260297,-400.0,0.00046575,120]
[377216683,1754296260306,-400.0,0.00046575,120]
[377216684,1754296260316,-2139.49,0.00046575,120]
[377216685,1754296260326,-400.0,0.00046575,120]
[377216686,1754296260337,-400.0,0.00046575,120]
[377216687,1754296260346,-151.0,0.00046575,14]
[377216688,1754296260356,-151.0,0.00046575,14]
[377216689,1754296260366,-151.0,0.00046575,14]
[377216690,1754296260375,-400.0,0.00046575,120]
[377216691,1754296260385,-400.0,0.00046575,120]
[377216692,1754296260395,-458.67,0.00046575,120]
[377216693,1754296260405,-395.727984,0.00046575,14]
[377216694,1754296260414,-395.727984,0.00046575,14]
[377216695,1754296260424,-400.0,0.00046575,120]
[377216696,1754296260433,-395.727984,0.00046575,14]
[377216697,1754296260443,-400.0,0.00046575,120]
[377216698,1754296260452,-400.0,0.00046575,120]
[377216699,1754296260461,-1064.5,0.00046575,120]
[377216700,1754296260471,-400.0,0.00046575,120]
[377216701,1754296260480,-151.0,0.00046575,14]
[377216702,1754296260491,-1321.95,0.00046575,120]
[377216703,1754296260502,-154.971489,0.00046575,14]
[377216704,1754296260519,-400.0,0.00046575,120]
[377216705,1754296260530,-1463.31,0.00046575,120]
[377216706,1754296260540,-400.0,0.00046575,120]
[377216707,1754296260549,-395.727984,0.00046575,14]
[377216708,1754296260559,-400.0,0.00046575,120]
[377216709,1754296260569,-400.0,0.00046575,120]
[377216710,1754296260579,-395.727984,0.00046575,14]
[377216711,1754296260588,-395.727984,0.00046575,14]
[377216712,1754296260599,-400.0,0.00046575,120]
[377216713,1754296260608,-400.0,0.00046575,120]
[377216714,1754296260617,-715.87,0.00046575,120]
[377216715,1754296260627,-976.61,0.00046575,120]
[377216716,1754296260636,-400.0,0.00046575,120]
[377216717,1754296260645,-318.6664553,0.00046575,120]
[377216718,1754296260654,-1397.05,0.00046575,120]
[377216719,1754296260663,-174.92066054,0.00046575,120]
[377216720,1754296260682,-225.07933946,0.00046575,120]
[377216721,1754296260692,-953.15,0.00046575,120]
[377216722,1754296260701,-992.6,0.00046575,120]
[377216723,1754296260711,-484.12799608,0.00046575,120]
[377216724,1754296260720,-400.0,0.00046575,120]
[377216725,1754296260729,-1149.53,0.00046575,120]
[377216726,1754296260741,-433.77,0.00046575,120]
[377216727,1754296260750,-400.0,0.00046575,120]
[377216728,1754296260760,-400.0,0.00046575,120]
[377216729,1754296260769,-1083.75,0.00046575,120]
[377216730,1754296260778,-400.0,0.00046575,120]
[377216731,1754296260787,-523.58,0.00046575,120]
[377216732,1754296260797,-1574.28,0.00046575,120]
[377216733,1754296260806,-400.0,0.00046575,120]
[377216734,1754296260816,-400.0,0.00046575,120]
[377216735,1754296260825,-621.52,0.00046575,120]
[377216736,1754296260835,-829.96,0.00046575,120]
[377216737,1754296260843,-400.0,0.00046575,120]
[377216738,1754296260853,-554.28,0.00046575,120]
[377216739,1754296260862,-400.0,0.00046575,120]
[377216740,1754296260871,-421.92,0.00046575,120]
[377216741,1754296260880,-5863.62,0.00046575,120]
[377216742,1754296260889,-422.96,0.00046575,120]
[377216743,1754296260899,-570.3,0.00046575,120]
[377216744,1754296260908,-400.0,0.00046575,120]
[377216745,1754296260917,-588.99,0.00046575,120]
[377216746,1754296260929,-400.0,0.00046575,120]
[377216747,1754296260938,-400.0,0.00046575,120]
[377216748,1754296260947,-1644.34,0.00046575,120]
[377216749,1754296260957,-400.0,0.00046575,120]
[377216750,1754296260966,-400.0,0.00046575,120]
[377216751,1754296260977,-400.0,0.00046575,120]
[377216752,1754296260987,-400.0,0.00046575,120]
[377216753,1754296260996,-400.0,0.00046575,120]
[377216754,1754296261005,-400.0,0.00046575,120]
[377216755,1754296261014,-447.2,0.00046575,120]
[377216756,1754296261023,-828.44,0.00046575,120]
[377216757,1754296261032,-1602.16,0.00046575,120]
[377216758,1754296261042,-400.0,0.00046575,120]
[377216759,1754296261051,-400.0,0.00046575,120]
[377216760,1754296261060,-1718.37,0.00046575,120]
[377216761,1754296261069,-443.41,0.00046575,120]
[377216762,1754296261078,-1254.56,0.00046575,120]
[377216763,1754296261088,-400.0,0.00046575,120]
[377216764,1754296261097,-400.0,0.00046575,120]
[377216765,1754296261107,-400.0,0.00046575,120]
[377216766,1754296261116,-398.78884199,0.00046575,120]
[377216767,1754296261125,-400.0,0.00046575,120]
[377216768,1754296261134,-400.0,0.00046575,120]
[377216769,1754296261143,-400.0,0.00046575,120]
[377216770,1754296261153,-400.0,0.00046575,120]
[377216771,1754296261162,-226.57243379,0.00046575,120]
[377216772,1754296261171,-400.0,0.00046575,120]
[377216773,1754296261180,-695.33,0.00046575,120]
[377216774,1754296261189,-1549.42,0.00046575,120]
[377216775,1754296261198,-500.0,0.00046575,120]
[377216776,1754296261206,-500.0,0.00046575,120]
[377216777,1754296261215,-500.0,0.00046575,120]
[377216778,1754296261224,-500.0,0.00046575,120]
[377216779,1754296261233,-400.0,0.00046575,120]
[377216780,1754296261244,-400.0,0.00046575,120]
[377216781,1754296261253,-505.00476816,0.00046575,120]
[377216782,1754296261262,-400.0,0.00046575,120]
[377216783,1754296261271,-768.5,0.00046575,120]
[377216784,1754296261280,-400.0,0.00046575,120]
[377216785,1754296261289,-500.0,0.00046575,120]
[377216786,1754296261298,-653.02,0.00046575,120]
[377216787,1754296261308,-1732.82,0.00046575,120]
[377216788,1754296261317,-400.0,0.00046575,120]
[377216789,1754296261327,-519.35,0.00046575,120]
[377216790,1754296261336,-400.0,0.00046575,120]
[377216791,1754296261345,-400.0,0.00046575,120]
[377216792,1754296261354,-400.0,0.00046575,120]
[377216793,1754296261364,-400.0,0.00046575,120]
[377216794,1754296261373,-400.0,0.00046575,120]
[377216795,1754296261382,-1259.55,0.00046575,120]
[377216796,1754296261391,-400.0,0.00046575,120]
[377216797,1754296261401,-1602.32,0.00046575,120]
[377216798,1754296261410,-642.01,0.00046575,120]
[377216799,1754296261419,-436.21,0.00046575,120]
[377216800,1754296261428,-888.77,0.00046575,120]
[377216801,1754296261437,-606.5,0.00046575,120]
[377216802,1754296261446,-400.0,0.00046575,120]
[377216803,1754296261456,-400.0,0.00046575,120]
[377216804,1754296261465,-1811.14,0.00046575,120]
[377216805,1754296261474,-400.0,0.00046575,120]
[377216806,1754296261484,-400.0,0.00046575,120]
[377216807,1754296261494,-822.95,0.00046575,120]
[377216808,1754296261504,-400.0,0.00046575,120]
[377216809,1754296261516,-400.0,0.00046575,120]
[377216810,1754296261526,-400.0,0.00046575,120]
[377216811,1754296261535,-400.0,0.00046575,120]
[377216812,1754296261544,-400.0,0.00046575,120]
[377216813,1754296261554,-400.0,0.00046575,120]
[377216814,1754296261563,-764.54,0.00046575,120]
[377216815,1754296261573,-400.0,0.00046575,120]
[377216816,1754296261581,-1192.09,0.00046575,120]
[377216817,1754296261591,-400.0,0.00046575,120]
[377216818,1754296261601,-400.0,0.00046575,120]
[377216819,1754296261610,-400.0,0.00046575,120]
[377216820,1754296261619,-154.3503,0.00046575,14]
[377216821,1754296261628,-400.0,0.00046575,120]
[377216822,1754296261638,-400.0,0.00046575,120]
[377216823,1754296261648,-151.0,0.00046575,14]
[377216824,1754296261657,-151.0,0.00046575,14]
[377216825,1754296261667,-400.0,0.00046575,120]
[377216826,1754296261677,-752.31,0.00046575,120]
[377216827,1754296261686,-151.0,0.00046575,14]
[377216828,1754296261695,-852.83,0.00046575,120]
[377216829,1754296261704,-1499.06,0.00046575,120]
[377216830,1754296261713,-400.0,0.00046575,120]
[377216831,1754296261723,-411.83,0.00046575,120]
[377216832,1754296261732,-845.77,0.00046575,120]
[377216833,1754296261743,-905.58,0.00046575,120]
[377216834,1754296261753,-500.0,0.00046575,120]
[377216835,1754296261762,-400.0,0.00046575,120]
[377216836,1754296261771,-403.74622792,0.00046575,120]
[377216837,1754296261781,-582.45,0.00046575,120]
[377216838,1754296261790,-1758.53,0.00046575,120]
[377216839,1754296261799,-400.0,0.00046575,120]
[377216840,1754296261821,-540.15,0.00046575,120]
[377216841,1754296261831,-484.98,0.00046575,120]
[377216842,1754296261840,-1250.21,0.00046575,120]
[377216843,1754296261849,-226.29213887,0.00046575,120]
[377216844,1754296261859,-400.0,0.00046575,120]
[377216845,1754296261869,-400.0,0.00046575,120]
[377216846,1754296261879,-457.95,0.00046575,120]
[377216847,1754296261889,-400.0,0.00046575,120]
[377216848,1754296261899,-400.0,0.00046575,120]
[377216849,1754296261909,-400.0,0.00046575,120]
[377216850,1754296261918,-400.0,0.00046575,120]
[377216851,1754296261927,-459.40880081,0.00046575,60]
[377216852,1754296261937,-400.0,0.00046575,120]
[377216853,1754296261946,-400.0,0.00046575,120]
[377216854,1754296261955,-400.0,0.00046575,120]
[377216855,1754296261964,-1599.68,0.00046575,120]
[377216856,1754296261974,-400.43728531,0.00046575,120]
[377216857,1754296261983,-503.35,0.00046575,120]
[377216858,1754296261993,-430.89,0.00046575,120]
[377216859,1754296262002,-400.0,0.00046575,120]
[377216860,1754296262012,-525.62,0.00046575,120]
[377216861,1754296262022,-489.03,0.00046575,120]
[377216862,1754296262031,-400.0,0.00046575,120]
[377216863,1754296262040,-659.46,0.00046575,120]
[377216864,1754296262049,-401.40129705,0.00046575,120]
[377216865,1754296262058,-406.1172538,0.00046575,120]
[377216866,1754296262067,-400.0,0.00046575,120]
[377216867,1754296262076,-400.0,0.00046575,120]
[377216868,1754296262085,-400.0,0.00046575,120]
[377216869,1754296262094,-400.0,0.00046575,120]
[377216870,1754296262103,-400.0,0.00046575,120]
[377216871,1754296262112,-400.0,0.00046575,120]
[377216872,1754296262123,-407.7,0.00046575,120]
[377216873,1754296262132,-765.28,0.00046575,120]
[377216874,1754296262141,-400.0,0.00046575,120]
[377216875,1754296262150,-402.87372642,0.00046575,120]
[377216876,1754296262159,-2575.27,0.00046575,14]
[377216877,1754296262169,-400.0,0.00046575,120]
[377216878,1754296262178,-462.65485595,0.00046575,120]
[377216879,1754296262187,-400.0,0.00046575,120]
[377216880,1754296262196,-5678.53,0.00046575,120]
[377216881,1754296262205,-684.33,0.00046575,120]
[377216882,1754296262214,-400.0,0.00046575,120]
[377216883,1754296262223,-1143.12,0.00046575,120]
[377216884,1754296262232,-3265.5,0.00046575,120]
[377216885,1754296262243,-1643.4,0.00046575,120]
[377216886,1754296262252,-488.68158717,0.00046575,120]
[377216887,1754296262262,-400.0,0.00046575,120]
[377216888,1754296262271,-1600.96,0.00046575,120]
[377216889,1754296262280,-1098.66,0.00046575,120]
[377216890,1754296262289,-894.86,0.00046575,120]
[377216891,1754296262298,-400.0,0.00046575,120]
[377216892,1754296262307,-487.69,0.00046575,120]
[377216893,1754296262317,-400.0,0.00046575,120]
[377216894,1754296262326,-1002.48,0.00046575,120]
[377216895,1754296262336,-400.0,0.00046575,120]
[377216896,1754296262345,-400.0,0.00046575,120]
[377216897,1754296262354,-400.0,0.00046575,120]
[377216898,1754296262363,-400.0,0.00046575,120]
[377216899,1754296262373,-556.19,0.00046575,120]
[377216900,1754296262382,-400.0,0.00046575,120]
[377216901,1754296262391,-400.0,0.00046575,120]
[377216902,1754296262401,-759.89,0.00046575,120]
[377216903,1754296262411,-400.0,0.00046575,120]
[377216904,1754296262420,-2775.22,0.00046575,120]
[377216905,1754296262429,-400.0,0.00046575,120]
[377216906,1754296262438,-400.0,0.00046575,120]
[377216907,1754296262447,-400.0,0.00046575,120]
[377216908,1754296262457,-400.0,0.00046575,120]
[377216909,1754296262466,-445.72,0.00046575,120]
[377216910,1754296262475,-400.0,0.00046575,120]
[377216911,1754296262485,-400.0,0.00046575,120]
[377216912,1754296262496,-513.72160381,0.00046575,120]
[377216913,1754296262506,-400.0,0.00046575,120]
[377216914,1754296262517,-706.55,0.00046575,120]
[377216915,1754296262527,-591.81,0.00046575,120]
[377216916,1754296262537,-461.76,0.00046575,120]
[377216917,1754296262547,-400.0,0.00046575,120]